bitfinex-derivatives/quotes_ETHF0:USTF0_20251117
["timestamp","ask_amount","ask_price","bid_price","bid_amount"]
[1763345466834,2.3843,3143.2,3142.9,3.2078]
[1763345467037,0.7102517,3143.5,3142.9,3.2078]
[1763345467238,0.00477578,3143.5,3142.9,3.21257578]
[1763345467534,3.56650065,3144.6,3143.4,3.2078]
[1763345467730,2.3843,3144.4,3143.9,3.2078]
[1763345468032,3.2078,3144.0,3143.2,3.2078]
[1763345468223,3.2078,3144.2,3143.2,3.2078]
[1763345468421,0.35870065,3144.6,3143.6,3.2078]
[1763345468422,2.3843,3144.1,3143.6,3.2078]
[1763345468829,0.00370065,3144.6,3143.6,11.1941912]
[1763345469029,0.7102517,3144.5,3144.0,3.2078]
[1763345469537,0.00370065,3144.6,3144.0,3.2078]
[1763345470233,0.71395235,3144.6,3144.5,3.2078]
[1763345470435,0.71395235,3144.6,3144.1,3.2078]
[1763345471032,0.71395235,3144.6,3144.2,40.8]
[1763345471232,0.355,3145.5,3144.5,3.2078]
[1763345471438,3.2078,3145.6,3144.9,3.2078]
[1763345471837,2.3843,3145.4,3144.9,3.2078]
[1763345472136,0.87052,3144.8,3144.4,3.2078]
[1763345472334,3.2078,3144.5,3143.2,3.2078]
[1763345472535,0.355,3144.0,3143.2,3.2078]
[1763345472739,3.2078,3143.8,3143.3,40.8]
[1763345473037,5.5921,3143.8,3143.3,40.8]
[1763345473231,0.00477578,3143.9,3143.3,40.8]
[1763345473426,3.5628,3144.8,3143.3,40.8]
[1763345473427,3.2078,3144.2,3143.3,40.8]
[1763345473628,3.2078,3144.1,3143.3,40.8]
[1763345473830,5.5921,3144.1,3143.3,40.8]
[1763345474036,3.2078,3144.5,3143.3,40.8]
[1763345474236,5.5921,3144.1,3143.3,40.8]
[1763345474627,2.3843,3144.1,3143.3,40.8]
[1763345475336,3.2078,3143.7,3143.2,3.21257578]
[1763345475529,3.2078,3143.3,3143.2,0.00477578]
[1763345475734,5.5921,3143.3,3143.2,0.00477578]
[1763345476042,2.3843,3143.3,3143.2,0.00477578]
[1763345477435,7.4581,3143.2,3141.3,3.2078]
[1763345477638,3.2078,3141.5,3140.8,1.9863912]
[1763345477837,3.2078,3141.5,3141.3,40.8]
[1763345478043,3.2078,3141.5,3140.7,3.2078]
[1763345478236,2.3843,3141.3,3140.2,5.1941912]
[1763345478430,2.38702167,3141.3,3141.2,1.20382538]
[1763345480136,2.90311167,3141.3,3141.2,0.00359246]
[1763345480342,8.90311167,3141.3,3140.9,0.00477578]
[1763345480639,0.00272167,3141.3,3141.0,1.09115223]
[1763345480833,2.3843,3141.2,3141.1,1.09115223]
[1763345481235,0.00272167,3141.3,3141.1,1.094893]
[1763345481438,0.00272167,3141.3,3141.2,1.09115223]
[1763345481638,0.00477578,3141.6,3141.2,1.09115223]
[1763345481838,0.00477578,3141.6,3141.3,2.17471056]
[1763345482133,3.2078,3141.8,3141.5,1.08355833]
[1763345482338,0.355,3144.0,3141.6,2.72599579]
[1763345482339,3.2078,3142.3,3141.6,2.72599579]
[1763345482543,3.2078,3142.3,3142.0,1.08529233]
[1763345482745,3.21139299,3142.3,3142.1,1.09115223]
[1763345482940,3.21139299,3142.3,3142.2,1.09115223]
[1763345483540,5.59569299,3142.3,3142.2,1.09115223]
[1763345484448,3.21139299,3142.3,3142.2,1.09115223]
[1763345484937,5.59569299,3142.3,3142.2,1.09115223]
[1763345485445,3.2078,3142.3,3142.2,7.09115223]
[1763345485645,1.50941399,3150.4,3142.2,7.09115223]
[1763345485646,3.2078,3152.1,3148.2,3.2078]
[1763345485835,7.09772001,3156.6,3148.2,3.2078]
[1763345485836,3.2078,3153.5,3152.0,3.2078]
[1763345486136,16.15333738,3155.1,3153.1,1.09032748]
[1763345486338,16.15333738,3155.1,3153.7,1.08186058]
[1763345486546,16.15333738,3155.0,3153.8,0.97797795]
[1763345486746,1.391,3153.8,3153.1,3.2078]
[1763345487345,2.65926418,3153.2,3153.1,3.2078]
[1763345487540,2.65926418,3153.2,3153.1,3.21255941]
[1763345487741,0.02870029,3153.2,3153.1,3.21515761]
[1763345488048,2.70293625,3153.2,3153.1,3.61634446]
[1763345488253,2.70293625,3153.2,3153.1,3.21515761]
[1763345488746,8.70293625,3153.2,3153.1,3.21515761]
[1763345488940,2.70293625,3153.2,3153.1,3.21515761]
[1763345489343,8.70293625,3153.2,3153.1,3.21515761]
[1763345489546,0.00328526,3155.1,3153.1,3.61799626]
[1763345489740,0.00328526,3155.1,3153.8,3.2078]
[1763345489958,1.391,3153.6,3153.3,3.2078]
[1763345490147,1.391,3153.6,3153.1,0.00735761]
[1763345490351,6.0,3153.5,3153.1,0.00735761]
[1763345490845,6.0,3153.4,3153.2,3.2078]
[1763345491038,1.391,3153.6,3153.1,0.00735761]
[1763345491447,6.0,3153.5,3153.1,0.00735761]
[1763345491643,6.0,3153.5,3152.8,3.2078]
[1763345491837,1.391,3152.4,3151.2,3.2078]
[1763345492042,3.2078,3152.3,3151.7,3.2078]
[1763345492250,3.2078,3152.7,3152.1,3.2078]
[1763345492452,3.2078,3152.3,3151.2,3.2078]
[1763345492650,0.00470486,3152.1,3151.3,0.42877023]
[1763345492854,0.00470486,3152.1,3151.4,0.43352964]
[1763345493147,0.00470486,3152.1,3151.6,3.2078]
[1763345493353,0.00470486,3152.1,3152.0,3.2078]
[1763345493553,6.00470486,3152.1,3152.0,3.2078]
[1763345494050,6.03352143,3152.1,3151.6,3.2078]
[1763345494251,0.03352143,3152.1,3151.6,3.2078]
[1763345494448,0.04367207,3151.9,3151.6,3.2078]
[1763345494849,0.04367207,3151.9,3151.7,0.42787324]
[1763345495046,0.04367207,3151.9,3151.6,3.2078]
[1763345495445,0.04367207,3151.8,3151.6,3.2078]
[1763345496252,1.391,3151.5,3150.4,3.2078]
[1763345496457,1.391,3150.4,3150.0,3.2078]
[1763345496658,3.2078,3150.2,3148.6,3.2078]
[1763345496950,3.2078,3149.6,3148.6,3.2078]
[1763345497149,3.2078,3148.7,3148.2,0.89852315]
[1763345497349,0.00350974,3148.7,3148.5,3.2078]
[1763345497549,0.00350974,3148.7,3148.6,3.16412793]
[1763345497958,0.00350974,3148.7,3148.5,3.2078]
[1763345497959,6.00350974,3148.7,3148.5,3.2078]
[1763345498159,0.00350974,3148.7,3148.5,3.2078]
[1763345498453,6.00350974,3148.7,3148.5,3.2078]
[1763345498654,6.00350974,3148.7,3148.6,1.06177977]
[1763345498858,3.2078,3150.5,3148.6,4.70622734]
[1763345499161,3.2078,3150.1,3149.4,3.2078]
[1763345499360,3.2078,3149.6,3148.9,3.2078]
[1763345499655,4.5988,3150.4,3149.3,3.2078]
[1763345499857,0.00470486,3150.2,3149.8,3.2078]
[1763345500057,0.00470486,3150.2,3150.1,3.2078]
[1763345500253,3.2078,3151.1,3150.1,4.2680505]
[1763345500455,0.04100142,3150.2,3149.7,40.80475941]
[1763345500650,0.04100142,3150.2,3150.1,3.2078]
[1763345500954,0.0437267,3150.2,3149.9,3.2078]
[1763345501158,0.0437267,3150.2,3150.0,1.06037085]
[1763345501363,3.2078,3151.7,3150.1,4.27676111]
[1763345501552,3.2078,3151.7,3150.8,3.2078]
[1763345502155,3.2078,3151.3,3150.8,3.2078]
[1763345502356,3.21090615,3151.3,3150.8,3.21023858]
[1763345502655,3.2078,3149.9,3147.9,2.18065497]
[1763345502854,3.2078,3148.2,3148.0,4.70417963]
[1763345503062,3.2078,3148.8,3148.1,4.70417963]
[1763345503258,3.2078,3148.8,3148.2,1.48778937]
[1763345503466,0.00274555,3148.8,3148.4,3.2078]
[1763345503755,0.00750496,3148.8,3148.5,1.48778937]
[1763345503956,0.00750496,3148.8,3148.6,1.48778937]
[1763345504160,0.00750496,3148.8,3148.7,1.48778937]
[1763345504354,3.2078,3149.6,3148.7,4.70417963]
[1763345504657,3.2078,3149.6,3148.8,7.91197963]
[1763345504862,3.2078,3149.6,3148.9,1.48778937]
[1763345505054,3.2078,3149.6,3149.0,1.48778937]
[1763345505255,3.2078,3149.6,3149.1,1.48778937]
[1763345505256,3.21166409,3149.6,3149.1,1.48778937]
[1763345505459,3.21166409,3149.6,3149.3,1.4014]
[1763345505650,3.2078,3150.2,3149.4,1.48778937]
[1763345505851,3.2078,3150.7,3150.0,3.2078]
[1763345506056,3.2078,3151.1,3150.4,3.2078]
[1763345506253,3.2078,3151.1,3150.5,1.48812102]
[1763345506460,3.2078,3151.1,3150.6,1.48812102]
[1763345506666,3.2078,3151.7,3150.9,3.18970708]
[1763345506856,3.21024953,3151.7,3151.0,1.49260699]
[1763345507057,3.21024953,3151.7,3151.1,1.48784758]
[1763345507258,3.21024953,3151.7,3151.2,1.48784758]
[1763345507459,3.21024953,3151.7,3151.3,1.48784758]
[1763345507768,6.0,3151.6,3151.0,0.00475941]
[1763345507967,0.51451,3151.0,3149.8,3.2078]
[1763345508162,3.2078,3150.4,3149.9,1.48486977]
[1763345508362,3.2078,3150.4,3150.0,1.48486977]
[1763345508563,3.2078,3150.4,3150.1,1.48486977]
[1763345508758,3.2078,3150.4,3150.2,1.48486977]
[1763345508966,3.2078,3150.4,3150.3,1.48486977]
[1763345509165,9.2078,3150.4,3150.3,1.48486977]
[1763345509466,6.0,3150.3,3150.0,0.00079224]
[1763345509661,0.51465,3150.2,3150.0,0.00079224]
[1763345509970,6.0,3150.2,3150.0,0.00079224]
[1763345510365,3.2078,3150.4,3150.0,0.00478815]
[1763345510767,0.51465,3150.2,3149.1,1.61917507]
[1763345510969,3.2078,3149.6,3149.0,1.61917507]
[1763345511171,3.2078,3149.6,3149.2,1.61917507]
[1763345511465,3.2078,3149.6,3149.0,1.61917507]
[1763345511763,3.2078,3149.6,3149.0,1.6223974]
[1763345511966,3.2078,3149.2,3149.0,1.62715681]
[1763345512160,3.21138374,3149.2,3148.5,1.61917507]
[1763345512365,3.2078,3148.7,3148.6,1.64688262]
[1763345512556,3.2078,3148.7,3148.5,1.64688262]
[1763345512957,3.2078,3149.1,3148.6,0.00859026]
[1763345513158,0.00834315,3149.2,3148.9,1.62700367]
[1763345513362,0.00834315,3149.2,3148.7,3.21639026]
[1763345513564,0.00834315,3149.2,3149.1,3.2078]
[1763345513761,3.2078,3149.6,3149.1,3.2078]
[1763345513976,3.2078,3149.6,3149.3,2.20092418]
[1763345514171,3.2078,3149.6,3149.2,2.20092418]
[1763345514470,3.2078,3149.6,3149.1,5.9705691]
[1763345514664,3.2078,3149.6,3149.2,0.00859026]
[1763345514862,3.21184567,3149.6,3149.1,5.9705691]
[1763345515063,3.21184567,3149.6,3149.1,2.21084745]
[1763345515064,3.2078,3149.2,3149.1,2.21084745]
[1763345515268,0.42660695,3149.2,3148.6,0.00238015]
[1763345515476,0.42660695,3149.2,3148.9,2.75417884]
[1763345515974,6.0,3149.1,3148.8,2.75417884]
[1763345516157,0.42660695,3149.2,3148.6,0.00238015]
[1763345516158,6.42660695,3149.2,3148.6,0.00238015]
[1763345516477,1.391,3149.0,3148.5,0.00475941]
[1763345516770,0.51488,3148.8,3148.5,0.00475941]
[1763345516968,3.72269,3148.7,3148.5,0.00475941]
[1763345517169,3.2078,3148.7,3147.6,5.43271484]
[1763345517371,0.51491,3148.6,3147.6,5.43271484]
[1763345517564,0.51491,3148.6,3147.7,0.00859026]
[1763345517763,0.51493,3148.5,3147.7,0.00859026]
[1763345518170,0.51493,3148.5,3147.8,0.00475941]
[1763345518870,0.51494,3148.4,3147.8,0.00475941]
[1763345519070,0.51494,3148.4,3147.9,0.00859026]
[1763345519474,0.51498,3148.1,3147.8,0.00475941]
[1763345519673,3.2078,3148.3,3147.8,0.00475941]
[1763345520067,0.51501,3148.0,3147.8,0.00475941]
[1763345520267,3.2078,3147.9,3146.7,3.2078]
[1763345520466,3.2078,3147.8,3147.1,3.2078]
[1763345520862,3.2078,3147.8,3146.2,1.21416705]
[1763345520863,3.2078,3148.7,3147.6,3.2078]
[1763345521069,3.2078,3148.7,3147.6,5.43271484]
[1763345521270,0.00475941,3148.5,3148.4,3.2078]
[1763345521575,3.2078,3149.1,3148.4,4.53379137]
[1763345521770,3.19920974,3149.1,3148.5,1.32599137]
[1763345521962,3.19920974,3149.1,3148.6,1.32599137]
[1763345522165,3.19920974,3149.1,3148.7,1.32599137]
[1763345522367,3.19920974,3149.1,3148.8,1.32599137]
[1763345522568,3.19920974,3149.1,3148.9,1.32599137]
[1763345522767,3.19920974,3149.1,3148.4,3.2078]
[1763345522768,3.19920974,3149.1,3149.0,1.32599137]
[1763345523368,0.51494,3148.4,3148.2,2.22491484]
[1763345523562,0.51494,3148.4,3147.8,0.00475941]
[1763345523563,3.72271,3148.6,3148.3,0.90341201]
[1763345523768,0.51492,3148.5,3147.8,0.00475941]
[1763345524171,0.51492,3148.5,3148.0,3.2078]
[1763345524366,0.515,3148.0,3147.8,0.00475941]
[1763345524772,3.2078,3148.2,3147.8,0.00475941]
[1763345524971,0.51501,3148.0,3147.8,0.00475941]
[1763345525272,0.51497,3148.2,3147.8,0.00475941]
[1763345525879,0.51499,3148.1,3147.8,0.00475941]
[1763345526377,4.095,3149.2,3147.8,0.00475941]
[1763345526378,0.51501,3148.0,3147.8,0.00475941]
[1763345527080,0.51502,3147.9,3147.6,0.00336098]
[1763345527286,0.51498,3148.1,3147.6,0.00336098]
[1763345527482,0.515,3148.0,3147.6,0.00336098]
[1763345527672,3.2078,3148.2,3147.6,0.00336098]
[1763345527869,3.2078,3147.8,3147.6,0.00336098]
[1763345528183,3.2078,3148.2,3147.6,0.84257039]
[1763345528375,0.515,3148.0,3147.6,0.84257039]
[1763345528682,0.51501,3148.0,3147.7,0.83920941]
[1763345529283,0.51502,3147.9,3147.6,0.84257039]
[1763345529482,0.51505,3147.7,3147.6,0.00336098]
[1763345529685,3.2078,3148.2,3147.6,0.00336098]
[1763345529990,3.2078,3149.0,3147.7,4.04700941]
[1763345530193,0.51493,3148.5,3147.7,3.2078]
[1763345530383,0.51493,3148.5,3147.9,0.83796066]
[1763345530583,3.2078,3148.6,3148.1,3.2078]
[1763345530783,0.51495,3148.3,3148.1,3.2078]
[1763345531080,3.2078,3148.6,3148.1,3.2078]
[1763345531081,0.51494,3148.4,3148.1,3.2078]
[1763345531281,3.2078,3148.6,3148.1,3.2078]
[1763345531481,0.00475941,3149.3,3148.5,3.2078]
[1763345531686,0.00475941,3149.3,3148.6,0.8374934]
[1763345531885,0.51484,3149.0,3148.6,0.8374934]
[1763345532084,0.51487,3148.8,3148.7,0.8374934]
[1763345532280,0.00475941,3149.3,3147.6,0.00336098]
[1763345532281,3.2078,3148.9,3148.0,0.83843825]
[1763345532590,0.51495,3148.4,3147.7,3.2078]
[1763345533091,0.51485,3148.9,3148.2,4.6166]
[1763345533290,3.2078,3149.2,3148.2,4.6166]
[1763345533881,0.51483,3149.1,3148.2,4.6166]
[1763345534088,0.51483,3149.1,3148.2,6.29299076]
[1763345534394,0.51486,3148.9,3148.2,6.29299076]
[1763345534594,0.51482,3149.1,3148.2,6.29299076]
[1763345534892,0.51484,3149.0,3148.2,6.29299076]
[1763345535285,3.2078,3149.2,3148.2,4.88419076]
[1763345535485,3.2078,3149.2,3148.3,1.24238657]
[1763345535699,3.2078,3149.2,3148.4,1.24238657]
[1763345535700,0.51484,3149.0,3148.4,1.24238657]
[1763345535888,3.2078,3149.2,3148.5,1.24238657]
[1763345536096,0.51484,3149.0,3148.6,1.24238657]
[1763345536399,3.2078,3149.2,3148.7,1.24238657]
[1763345536400,0.51482,3149.1,3148.7,1.24238657]
[1763345536592,0.51482,3149.1,3148.8,1.24238657]
[1763345536794,0.51482,3149.1,3148.9,1.24238657]
[1763345536994,0.51482,3149.1,3149.0,1.24238657]
[1763345538599,6.51482,3149.1,3149.0,6.57e-06]
[1763345543995,0.51482,3149.1,3149.0,6.57e-06]
[1763345547404,0.00475941,3149.3,3149.0,6.57e-06]
[1763345547598,0.00475941,3149.3,3149.0,3.2078]
[1763345549701,0.00404567,3149.6,3149.3,1.4742]
[1763345550712,0.00404567,3149.6,3149.4,0.39848017]
[1763345551008,0.51878567,3149.6,3149.5,0.39848017]
[1763345551302,0.00404567,3149.6,3149.5,0.39848017]
[1763345552410,3.07213965,3150.0,3149.5,0.39848017]
[1763345552601,3.2078,3150.9,3150.0,1.4742]
[1763345552797,0.51464,3150.2,3150.1,0.39848017]
[1763345553504,0.518239,3150.2,3150.1,0.40133304]
[1763345554497,0.003599,3150.2,3149.0,3.2078]
[1763345554706,0.51474,3149.6,3149.3,1.4742]
[1763345554894,0.51478,3149.4,3149.0,3.2078]
[1763345555207,0.51474,3149.6,3149.0,3.2078]
[1763345555602,0.51474,3149.6,3149.1,0.00805918]
[1763345555902,0.51474,3149.6,3149.3,1.4742]
[1763345556102,0.51476,3149.5,3149.3,1.4742]
[1763345556407,3.2078,3149.8,3149.3,1.4742]
[1763345556811,3.72251,3149.8,3149.3,1.4742]
[1763345557004,0.51466,3150.1,3149.3,1.4742]
[1763345557308,0.51468,3150.0,3149.6,3.2078]
[1763345557607,0.003599,3150.2,3149.6,3.2078]
[1763345557804,0.51475,3149.5,3149.3,1.4742]
[1763345558001,0.5148,3149.2,3149.1,0.00805918]
[1763345558208,3.2078,3149.9,3149.3,1.4742]
[1763345558406,0.51471,3149.8,3149.3,1.4742]
[1763345559500,0.51475,3149.6,3149.3,1.4742]
[1763345560112,0.51478,3149.3,3149.1,0.00805918]
[1763345560608,0.51493,3148.4,3148.3,3.2078]
[1763345561109,0.51503,3147.8,3147.4,3.2078]
[1763345561299,0.51505,3147.7,3147.4,3.2078]
[1763345561500,3.2078,3148.4,3147.4,3.2078]
[1763345561700,0.51504,3147.8,3147.6,0.00475941]
[1763345562104,0.00475941,3148.2,3147.6,0.00475941]
[1763345563008,0.51504,3147.8,3147.6,0.00475941]
[1763345563406,0.515,3148.0,3147.6,0.00475941]
[1763345563607,0.51505,3147.7,3147.6,0.00475941]
[1763345564012,3.72284,3147.8,3147.6,0.00475941]
[1763345565308,0.51508,3147.5,3147.4,0.00303191]
[1763345565508,0.51505,3147.7,3147.4,0.00303191]
[1763345565899,3.2078,3147.8,3147.4,0.00303191]
[1763345566503,0.00475941,3148.2,3147.5,0.39603574]
[1763345566808,0.00475941,3148.2,3147.9,1.4742]
[1763345567010,0.00475941,3148.2,3148.0,0.39603574]
[1763345567212,0.00475941,3148.2,3148.1,0.39603574]
[1763345569011,0.00475941,3148.2,3148.1,3.574e-05]
[1763345569317,0.00475941,3148.2,3147.4,3.21083191]
[1763345569518,3.2078,3148.1,3147.9,1.4877]
[1763345569714,0.00475941,3148.2,3147.9,1.4877]
[1763345570019,0.51501,3147.9,3147.4,3.21083191]
[1763345570211,0.51507,3147.6,3147.4,3.21083191]
[1763345570716,0.51507,3147.6,3147.4,0.00303191]
[1763345572218,3.2078,3147.7,3147.4,0.00303191]
[1763345574012,0.51507,3147.6,3147.4,0.00303191]
[1763345579216,3.72285,3147.7,3147.4,0.00303191]
[1763345579517,0.51507,3147.6,3147.4,0.00303191]
[1763345580118,3.2078,3147.5,3147.4,0.00303191]
[1763345580613,0.00475941,3148.2,3147.4,1.49689372]
[1763345580814,1.70723636,3149.3,3148.6,1.4877]
[1763345581020,3.2078,3150.0,3149.3,1.4877]
[1763345581225,3.2078,3150.0,3149.4,3.60149958]
[1763345581427,3.2078,3150.0,3149.5,0.39369958]
[1763345581724,1.70723636,3150.9,3148.8,1.49386181]
[1763345581725,0.51471,3149.8,3148.8,1.49386181]
[1763345581918,0.51471,3149.8,3149.4,0.00475941]
[1763345582125,3.72255,3149.5,3149.4,0.00475941]
[1763345582827,3.2078,3149.5,3148.6,4.6955]
[1763345583129,3.2078,3149.0,3147.7,3.2078]
[1763345583423,3.2078,3149.0,3147.4,1.12778565]
[1763345583424,0.51496,3148.2,3147.6,3.2078]
[1763345583616,0.51971941,3148.2,3147.6,3.21255941]
[1763345584128,0.51504,3147.8,3147.6,3.21255941]
[1763345584318,0.515,3148.0,3147.6,3.21255941]
[1763345585327,0.51503,3147.9,3147.6,3.21255941]
[1763345585527,0.51505,3147.7,3147.6,3.21255941]
[1763345585736,0.51837173,3147.7,3147.6,3.21255941]
[1763345585919,0.00332173,3147.7,3147.6,3.21255941]
[1763345586322,0.00332173,3147.7,3147.6,5.54145941]
[1763345587135,0.00475941,3148.2,3148.1,2.3289]
[1763345587428,6.4158,3149.3,3148.6,1.4877]
[1763345587628,6.4158,3149.3,3148.7,3.2078]
[1763345587824,6.93059,3149.3,3148.7,3.2078]
[1763345588142,6.93458151,3149.3,3148.7,3.2078]
[1763345588430,6.42455092,3149.3,3148.7,3.2078]
[1763345589133,6.93935092,3149.3,3148.7,3.2078]
[1763345589325,6.42455092,3149.3,3148.7,3.2078]
[1763345589621,6.93934092,3149.3,3148.7,3.2078]
[1763345590018,6.42455092,3149.3,3148.7,3.2078]
[1763345590227,3.2078,3148.9,3148.2,3.2078]
[1763345590417,3.2078,3148.5,3147.9,1.4877]
[1763345590624,0.51495,3148.3,3147.9,1.4877]
[1763345590824,0.51502,3147.9,3147.4,3.21083191]
[1763345591239,3.2078,3147.7,3147.4,0.00303191]
[1763345591421,0.51506,3147.6,3147.4,0.00303191]
[1763345592021,3.2078,3147.7,3147.4,0.00303191]
[1763345592734,3.2078,3148.3,3147.9,1.4877]
[1763345593230,3.72276,3148.3,3147.4,3.21083191]
[1763345593535,3.72276,3148.3,3147.5,0.81088147]
[1763345593733,3.2078,3148.3,3147.4,3.21083191]
[1763345594228,3.2078,3148.3,3147.5,0.39415412]
[1763345594424,3.2078,3148.3,3147.6,0.39415412]
[1763345594623,0.51502,3147.9,3147.7,0.39415412]
[1763345594926,0.51502,3147.9,3147.8,0.39415412]
[1763345595134,3.2078,3147.9,3147.8,0.39415412]
[1763345596829,3.2078,3147.9,3147.4,0.00303191]
[1763345597229,3.2078,3147.5,3147.4,0.00303191]
[1763345597638,3.2078,3147.9,3147.4,0.00303191]
[1763345597835,0.51504,3147.8,3147.4,0.00303191]
[1763345598036,3.2078,3147.5,3147.4,0.00303191]
[1763345600133,9.2078,3147.5,3146.1,3.2078]
[1763345600337,0.51523,3146.6,3146.1,3.2078]
[1763345600640,0.51528,3146.3,3145.8,2.33949825]
[1763345600836,3.2078,3146.2,3145.8,1.4877]
[1763345601231,0.51533,3146.0,3145.8,1.49028882]
[1763345601431,0.51799873,3146.2,3145.8,1.49028882]
[1763345601744,0.00269873,3146.2,3145.8,1.49028882]
[1763345603542,0.00269873,3146.2,3146.1,2.4528]
[1763345604438,0.00269873,3146.2,3145.8,1.49028882]
[1763345606743,0.51533,3146.0,3145.8,0.00258882]
[1763345607143,0.00269873,3146.2,3145.8,0.00258882]
[1763345607144,0.51799873,3146.2,3145.8,1.40448882]
[1763345607346,0.00269873,3146.2,3145.8,1.40448882]
[1763345607841,0.00269873,3146.2,3145.2,1.4019]
[1763345607842,3.2078,3145.9,3145.2,1.4019]
[1763345608032,3.2078,3145.9,3145.8,1.4019]
[1763345608439,0.00269873,3146.2,3145.8,1.4019]
[1763345608841,0.00269873,3146.2,3145.9,0.38886098]
[1763345609042,0.00269873,3146.2,3145.8,1.40598059]
[1763345609241,0.51532,3146.1,3145.9,0.38889426]
[1763345609436,0.00269873,3146.2,3146.1,2.4528]
[1763345609641,0.00269873,3146.2,3146.1,2.84147036]
[1763345610445,0.00269873,3146.2,3146.1,6.04927036]
[1763345610638,3.208,3147.2,3146.2,2.4528]
[1763345610842,3.2078,3147.6,3146.6,3.2078]
[1763345610843,6.4158,3147.6,3146.6,3.2078]
[1763345611041,6.4158,3147.6,3146.4,1.4019]
[1763345611042,0.51509,3147.5,3147.0,3.2078]
[1763345611240,0.51509,3147.5,3147.1,0.38867036]
[1763345611440,0.51509,3147.5,3147.2,0.38867036]
[1763345611747,0.51817965,3147.5,3147.0,3.2078]
[1763345611947,0.5151,3147.4,3147.1,0.3885757]
[1763345612248,0.5151,3147.4,3147.2,0.3885757]
[1763345612446,0.5151,3147.4,3147.0,3.2078]
[1763345612649,0.00308965,3147.5,3147.2,1.4019]
[1763345613144,0.00308965,3147.5,3147.3,0.38868618]
[1763345613349,0.00308965,3147.5,3147.4,0.38868618]
[1763345614248,0.00308965,3147.5,3147.4,2.84148618]
[1763345615038,0.00308965,3147.5,3147.4,0.38868618]
[1763345615446,0.51816965,3147.5,3147.4,0.38868618]
[1763345615643,0.00308965,3147.5,3147.4,2.84148618]
[1763345618951,0.00308965,3147.5,3147.4,6.04928618]
[1763345619252,3.2078,3148.6,3148.0,2.4528]
[1763345619553,3.2078,3148.6,3148.2,1.4019]
[1763345619754,3.2078,3148.6,3148.3,0.38868618]
[1763345619953,3.2078,3148.6,3148.4,0.38868618]
[1763345620250,3.2078,3148.6,3148.5,0.38936812]
[1763345620547,5.6809,3148.6,3148.5,0.38936812]
[1763345620751,3.21184456,3148.6,3148.5,0.3925797]
[1763345620956,6.19984456,3148.6,3148.5,0.00321158]
[1763345621353,3.21184456,3148.6,3148.5,0.00321158]
[1763345621753,2.4731,3147.4,3147.0,0.85179825]
[1763345621956,3.72295,3147.1,3146.8,0.85179825]
[1763345622150,3.2078,3147.1,3147.0,3.8547]
[1763345622750,3.2078,3147.1,3147.0,3.85789098]
[1763345623446,0.00476742,3147.4,3147.3,2.4528]
[1763345623646,0.00476742,3147.4,3147.0,4.61289098]
[1763345623845,0.51987742,3147.4,3147.0,4.61289098]
[1763345624555,0.00476742,3147.4,3147.0,4.61289098]
[1763345624754,0.51514,3147.2,3147.0,4.61289098]
[1763345624951,0.51986742,3147.4,3147.0,4.61289098]
[1763345625151,0.00476742,3147.4,3147.3,2.4528]
[1763345625545,2.2648048,3148.7,3147.3,2.4528]
[1763345625546,0.19723298,3149.0,3148.2,4.6097]
[1763345625750,2.81941927,3149.8,3148.9,4.87250632]
[1763345625954,2.0,3150.0,3149.7,3.2078]
[1763345626156,1.60699764,3150.0,3149.8,0.8018502]
[1763345626358,1.60699764,3150.0,3149.7,9.2078]
[1763345626562,1.609542,3150.0,3149.7,3.21005313]
[1763345627357,0.51469,3149.9,3149.7,3.21005313]
[1763345628265,2.984342,3150.0,3149.7,3.21005313]
[1763345628656,1.609542,3150.0,3149.7,3.21005313]
[1763345630061,3.025542,3150.0,3149.7,3.21005313]
[1763345630361,0.5147,3149.8,3149.7,3.21005313]
[1763345630861,2.9482,3149.8,3149.7,3.21005313]
[1763345631255,1.416,3149.3,3148.3,3.2078]
[1763345631464,1.9309,3148.6,3148.3,3.2078]
[1763345631766,1.416,3148.6,3147.9,3.2078]
[1763345632060,0.51496,3148.3,3147.9,3.2078]
[1763345632269,0.51496,3148.3,3147.9,3.21175161]
[1763345632465,0.00476742,3148.4,3147.9,3.21175161]
[1763345632656,0.51519,3146.8,3146.7,0.85179825]
[1763345632866,0.51523,3146.6,3145.2,1.12475374]
[1763345633162,3.2078,3146.7,3145.8,4.612]
[1763345633562,0.00476742,3146.6,3145.9,0.00319167]
[1763345634755,0.00476742,3146.6,3146.4,1.2424]
[1763345635669,0.00476742,3146.6,3145.9,3.21099167]
[1763345635863,0.51524,3146.5,3145.9,3.21099167]
[1763345636367,0.00476742,3146.6,3145.9,3.21099167]
[1763345636764,0.00476742,3146.6,3145.9,0.00319167]
[1763345638568,0.00476742,3146.6,3145.9,3.21099167]
[1763345640167,3.2078,3146.4,3145.9,3.21099167]
[1763345640467,0.5153,3146.2,3145.9,3.21099167]
[1763345640768,0.5153,3146.2,3145.9,0.00319167]
[1763345641174,3.2078,3146.4,3145.9,0.00319167]
[1763345641864,3.72306,3146.4,3145.9,0.00319167]
[1763345642068,3.2078,3146.4,3145.9,0.00319167]
[1763345642269,0.00476742,3146.6,3146.5,2.4438]
[1763345643973,0.00256975,3146.7,3146.6,2.4438]
[1763345644268,0.00256975,3146.7,3145.9,3.21099167]
[1763345644770,0.51777975,3146.7,3145.9,3.21099167]
[1763345644959,0.00476742,3146.6,3145.9,3.21099167]
[1763345645568,0.00476742,3146.6,3146.5,2.4438]
[1763345646076,0.00476742,3146.6,3145.9,3.21099167]
[1763345646370,0.00476742,3146.6,3146.5,2.4438]
[1763345647271,0.00476742,3146.6,3146.5,3.6814]
[1763345648174,0.00476742,3146.6,3146.5,2.4438]
[1763345648874,0.5153,3146.2,3145.9,3.21099167]
[1763345649077,0.51532,3146.1,3145.9,3.21099167]
[1763345649283,0.51532,3146.1,3145.9,0.00319167]
[1763345650074,4.6238,3146.5,3145.9,0.00319167]
[1763345650263,3.2078,3146.5,3146.4,2.4438]
[1763345650461,5.46,3147.3,3146.4,2.4438]
[1763345650462,0.2267408,3150.2,3147.9,3.2078]
[1763345650662,5.50786985,3154.3,3150.4,1.66470632]
[1763345650864,36.51350622,3154.1,3153.1,1.66470632]
[1763345651078,28.25650622,3154.0,3153.2,0.85247885]